[Event "Early-Titled-Tuesday-Blitz-February-27-2024"]
[Site "Chess.com"]
[Date "2024.02.27"]
[Round "4"]
[White "DamianoLew95"]
[Black "carloseduar100"]
[Result "1-0"]
[WhiteElo "2670"]
[BlackElo "2402"]
[TimeControl "180+1"]
[EndTime "8:37:50 PST"]
[Termination "DamianoLew95 won by resignation"]

1. e4 {[%clk 0:03:00.9]} 1... e6 {[%clk 0:02:58.7]} 2. d3 {[%clk 0:02:58.4]}
2... d5 {[%clk 0:02:57]} 3. Nd2 {[%clk 0:02:57.1]} 3... Nf6 {[%clk 0:02:57.2]}
4. g3 {[%clk 0:02:57]} 4... Be7 {[%clk 0:02:57.8]} 5. Bg2 {[%clk 0:02:57.1]}
5... c5 {[%clk 0:02:58.7]} 6. Ngf3 {[%clk 0:02:57.2]} 6... Nc6 {[%clk
0:02:58.9]} 7. O-O {[%clk 0:02:57.8]} 7... b5 {[%clk 0:02:59.5]} 8. Re1 {[%clk
0:02:58.2]} 8... a5 {[%clk 0:02:59.1]} 9. e5 {[%clk 0:02:58.7]} 9... Nd7 {[%clk
0:02:59.1]} 10. Nf1 {[%clk 0:02:59.4]} 10... a4 {[%clk 0:02:59.4]} 11. h4 {[%clk
0:02:59.7]} 11... b4 {[%clk 0:02:59.9]} 12. a3 {[%clk 0:02:59.9]} 12... bxa3
{[%clk 0:02:54.9]} 13. bxa3 {[%clk 0:03:00.8]} 13... Qc7 {[%clk 0:02:50.7]} 14.
Bf4 {[%clk 0:03:00]} 14... Nd4 {[%clk 0:02:41.6]} 15. Ne3 {[%clk 0:02:45.3]}
15... Nxf3+ {[%clk 0:02:41.2]} 16. Qxf3 {[%clk 0:02:46.2]} 16... Bb7 {[%clk
0:02:41.2]} 17. Qg4 {[%clk 0:02:33.5]} 17... g5 {[%clk 0:02:14.1]} 18. hxg5
{[%clk 0:02:18.9]} 18... Nxe5 {[%clk 0:02:09.7]} 19. Nxd5 {[%clk 0:02:12.7]}
19... Nxg4 {[%clk 0:01:35.6]} 20. Nxc7+ {[%clk 0:02:11]} 20... Kd7 {[%clk
0:01:35.9]} 21. Bxb7 {[%clk 0:02:02.5]} 21... Ra7 {[%clk 0:01:25.8]} 22. Bf3
{[%clk 0:02:02.3]} 22... h5 {[%clk 0:01:22.6]} 23. Nb5 {[%clk 0:01:59.3]} 23...
Ra5 {[%clk 0:01:20.9]} 24. Rab1 {[%clk 0:01:52.7]} 24... Rc8 {[%clk 0:01:13.4]}
25. Nc3 {[%clk 0:01:49.4]} 25... c4 {[%clk 0:01:09]} 26. Bb7 {[%clk 0:01:47.7]}
26... Rd8 {[%clk 0:00:48.6]} 27. d4 {[%clk 0:01:42.3]} 27... Bxg5 {[%clk
0:00:45.1]} 28. Bxg5 {[%clk 0:01:29.9]} 28... Rxg5 {[%clk 0:00:44.5]} 29. Bf3
{[%clk 0:01:29.6]} 29... Rf5 {[%clk 0:00:36.9]} 30. Rb7+ {[%clk 0:01:26]} 30...
Kc8 {[%clk 0:00:35.7]} 31. Bxg4 {[%clk 0:01:22.7]} 31... hxg4 {[%clk 0:00:36.6]}
32. Rb4 {[%clk 0:01:14.3]} 32... Rxd4 {[%clk 0:00:36.2]} 33. Re4 {[%clk
0:01:14.7]} 33... Rd2 {[%clk 0:00:21.5]} 34. Rbxc4+ {[%clk 0:01:14.1]} 34... Kd7
{[%clk 0:00:22.4]} 35. Re2 {[%clk 0:01:08.9]} 35... Rd6 {[%clk 0:00:16.9]} 36.
Nxa4 {[%clk 0:01:06.5]} 36... Ke7 {[%clk 0:00:14.7]} 37. Rxg4 {[%clk 0:01:04.7]}
37... Rd1+ {[%clk 0:00:13.1]} 38. Kg2 {[%clk 0:01:04.6]} 38... Ra1 {[%clk
0:00:14]} 39. Re3 {[%clk 0:00:59.8]} 39... Ra2 {[%clk 0:00:14]} 40. Rc3 {[%clk
0:00:52.1]} 40... Rd5 {[%clk 0:00:13.8]} 41. Rc7+ {[%clk 0:00:46]} 41... Ke8
{[%clk 0:00:12.2]} 42. Nc3 {[%clk 0:00:45.6]} 42... Rd7 {[%clk 0:00:10.5]} 43.
Rxd7 {[%clk 0:00:44.9]} 43... Kxd7 {[%clk 0:00:11.4]} 44. Nxa2 {[%clk
0:00:45.1]} 1-0

[Event "Early-Titled-Tuesday-Blitz-February-27-2024"]
[Site "Chess.com"]
[Date "2024.02.27"]
[Round "4"]
[White "ChadBiryani"]
[Black "Statham_01"]
[Result "1-0"]
[WhiteElo "2420"]
[BlackElo "2562"]
[TimeControl "180+1"]
[EndTime "8:37:50 PST"]
[Termination "ChadBiryani won on time"]

1. e4 {[%clk 0:03:00.9]} 1... e5 {[%clk 0:02:58.7]} 2. Nf3 {[%clk 0:02:59.6]}
2... Nf6 {[%clk 0:02:58.6]} 3. d3 {[%clk 0:02:56.9]} 3... Nc6 {[%clk 0:02:56.9]}
4. c3 {[%clk 0:02:52.1]} 4... d5 {[%clk 0:02:56.6]} 5. Nbd2 {[%clk 0:02:51.5]}
5... Bc5 {[%clk 0:02:55.6]} 6. Be2 {[%clk 0:02:51.2]} 6... a5 {[%clk 0:02:53.6]}
7. O-O {[%clk 0:02:46.1]} 7... O-O {[%clk 0:02:52.5]} 8. h3 {[%clk 0:02:45]}
8... Re8 {[%clk 0:02:48.2]} 9. Re1 {[%clk 0:02:44]} 9... a4 {[%clk 0:02:47]} 10.
Qc2 {[%clk 0:02:41]} 10... a3 {[%clk 0:02:41.7]} 11. b4 {[%clk 0:02:39.6]} 11...
Bb6 {[%clk 0:02:28.8]} 12. Nb1 {[%clk 0:02:13.9]} 12... d4 {[%clk 0:02:11.8]}
13. b5 {[%clk 0:02:13]} 13... Nb8 {[%clk 0:02:12.2]} 14. Bxa3 {[%clk 0:02:05]}
14... dxc3 {[%clk 0:02:10.7]} 15. Bb4 {[%clk 0:02:04.9]} 15... c6 {[%clk
0:01:55.7]} 16. bxc6 {[%clk 0:01:58.4]} 16... Nxc6 {[%clk 0:01:56.6]} 17. Bxc3
{[%clk 0:01:58.9]} 17... Bd7 {[%clk 0:01:29.2]} 18. Nbd2 {[%clk 0:01:56.2]}
18... Rc8 {[%clk 0:01:29]} 19. Nc4 {[%clk 0:01:54.7]} 19... Ba7 {[%clk
0:01:21.9]} 20. Qb2 {[%clk 0:01:52.9]} 20... b5 {[%clk 0:01:06.1]} 21. Nd6
{[%clk 0:01:52.1]} 21... b4 {[%clk 0:00:51.4]} 22. Bd2 {[%clk 0:01:51.9]} 22...
Nd4 {[%clk 0:00:40.1]} 23. Nxe8 {[%clk 0:01:45.2]} 23... Bxe8 {[%clk 0:00:41]}
24. Rac1 {[%clk 0:01:24.5]} 24... Rxc1 {[%clk 0:00:24.8]} 25. Bxc1 {[%clk
0:01:21.8]} 25... Bb5 {[%clk 0:00:20.2]} 26. Nxd4 {[%clk 0:01:19.2]} 26... Bxd4
{[%clk 0:00:21.1]} 27. Qxb4 {[%clk 0:01:17.3]} 27... Bd7 {[%clk 0:00:20.7]} 28.
Be3 {[%clk 0:01:15.6]} 28... Bxe3 {[%clk 0:00:15.8]} 29. fxe3 {[%clk 0:01:15.5]}
29... h6 {[%clk 0:00:16.7]} 30. a4 {[%clk 0:01:10]} 30... Nh7 {[%clk 0:00:16.9]}
31. Qd6 {[%clk 0:01:06.5]} 31... Qh4 {[%clk 0:00:16]} 32. Rf1 {[%clk 0:01:00.6]}
32... Bxh3 {[%clk 0:00:16]} 33. Qb8+ {[%clk 0:00:44.8]} 33... Nf8 {[%clk
0:00:15.8]} 34. Qxe5 {[%clk 0:00:45.2]} 34... Ng6 {[%clk 0:00:11.7]} 35. Qh2
{[%clk 0:00:40.6]} 35... Qg5 {[%clk 0:00:03]} 36. Qxh3 {[%clk 0:00:40.2]} 36...
f6 {[%clk 0:00:03.2]} 37. Rf5 {[%clk 0:00:34.6]} 1-0

[Event "Early-Titled-Tuesday-Blitz-February-27-2024"]
[Site "Chess.com"]
[Date "2024.02.27"]
[Round "4"]
[White "MIss_MIaMI"]
[Black "PawnEatingZombie"]
[Result "1-0"]
[WhiteElo "2413"]
[BlackElo "2149"]
[TimeControl "180+1"]
[EndTime "8:37:50 PST"]
[Termination "MIss_MIaMI won by resignation"]

1. e4 {[%clk 0:03:00.9]} 1... d6 {[%clk 0:02:59.8]} 2. Nf3 {[%clk 0:03:01.1]}
2... Nf6 {[%clk 0:02:59.1]} 3. Nc3 {[%clk 0:03:00.8]} 3... e5 {[%clk 0:02:58]}
4. h3 {[%clk 0:02:57.4]} 4... Be7 {[%clk 0:02:56.2]} 5. d4 {[%clk 0:02:57.7]}
5... Nbd7 {[%clk 0:02:55]} 6. Bc4 {[%clk 0:02:56.1]} 6... O-O {[%clk 0:02:55.4]}
7. O-O {[%clk 0:02:55]} 7... c6 {[%clk 0:02:55.3]} 8. dxe5 {[%clk 0:02:54.6]}
8... dxe5 {[%clk 0:02:53.1]} 9. a3 {[%clk 0:02:51.9]} 9... Qc7 {[%clk
0:02:52.8]} 10. Bg5 {[%clk 0:02:50.3]} 10... h6 {[%clk 0:02:50.9]} 11. Bh4
{[%clk 0:02:50.1]} 11... a5 {[%clk 0:02:43.2]} 12. a4 {[%clk 0:02:42.4]} 12...
Nc5 {[%clk 0:02:16.9]} 13. Qe2 {[%clk 0:02:34.1]} 13... Be6 {[%clk 0:02:14.8]}
14. Rfd1 {[%clk 0:02:29.1]} 14... Rfd8 {[%clk 0:02:10.9]} 15. Bg3 {[%clk
0:02:25.8]} 15... Nfd7 {[%clk 0:02:09.5]} 16. Bxe6 {[%clk 0:02:00.2]} 16... Nxe6
{[%clk 0:02:08.7]} 17. Rxd7 {[%clk 0:02:00.1]} 17... Qxd7 {[%clk 0:02:02.7]} 18.
Nxe5 {[%clk 0:01:59.5]} 18... Qd2 {[%clk 0:01:49.9]} 19. Qh5 {[%clk 0:01:55]}
19... Rf8 {[%clk 0:01:39.9]} 20. Rd1 {[%clk 0:01:48.6]} 20... Qxc2 {[%clk
0:01:39.5]} 21. Rd7 {[%clk 0:01:48.1]} 21... Bf6 {[%clk 0:01:36.3]} 22. Nxf7
{[%clk 0:01:36.5]} 22... Qxb2 {[%clk 0:01:25.6]} 23. Ne2 {[%clk 0:01:04.6]}
23... Qb1+ {[%clk 0:00:59.9]} 24. Kh2 {[%clk 0:01:01.1]} 24... Qxe4 {[%clk
0:01:00.2]} 25. Bd6 {[%clk 0:00:45.3]} 25... Rfe8 {[%clk 0:00:44.9]} 26. Ng3
{[%clk 0:00:12.4]} 26... Nf4 {[%clk 0:00:17.5]} 27. Nxh6+ {[%clk 0:00:11.6]}
27... gxh6 {[%clk 0:00:15.6]} 28. Qf7+ {[%clk 0:00:11.2]} 28... Kh8 {[%clk
0:00:08.6]} 29. Qxf6+ {[%clk 0:00:11.2]} 1-0

[Event "Early-Titled-Tuesday-Blitz-February-27-2024"]
[Site "Chess.com"]
[Date "2024.02.27"]
[Round "4"]
[White "javirec"]
[Black "yuriydovzik"]
[Result "0-1"]
[WhiteElo "2287"]
[BlackElo "2134"]
[TimeControl "180+1"]
[EndTime "8:37:52 PST"]
[Termination "yuriydovzik won by checkmate"]

1. Nf3 {[%clk 0:02:58.8]} 1... b6 {[%clk 0:02:58.3]} 2. g3 {[%clk 0:02:58.2]}
2... Bb7 {[%clk 0:02:57.4]} 3. Bg2 {[%clk 0:02:58.2]} 3... e5 {[%clk 0:02:53.4]}
4. d3 {[%clk 0:02:55.7]} 4... g6 {[%clk 0:02:43.5]} 5. O-O {[%clk 0:02:53.8]}
5... Bg7 {[%clk 0:02:43.3]} 6. c4 {[%clk 0:02:54.1]} 6... Ne7 {[%clk 0:02:40.8]}
7. Nc3 {[%clk 0:02:54.1]} 7... O-O {[%clk 0:02:39.4]} 8. Rb1 {[%clk 0:02:48.5]}
8... d5 {[%clk 0:02:35]} 9. cxd5 {[%clk 0:02:44.7]} 9... Nxd5 {[%clk 0:02:34.7]}
10. Bd2 {[%clk 0:02:44.4]} 10... c5 {[%clk 0:02:31.1]} 11. Qa4 {[%clk
0:02:42.8]} 11... Nb4 {[%clk 0:02:21.1]} 12. a3 {[%clk 0:02:38.1]} 12... Bc6
{[%clk 0:02:19.7]} 13. Qb3 {[%clk 0:02:37.8]} 13... N4a6 {[%clk 0:02:02.2]} 14.
Qc2 {[%clk 0:02:30.7]} 14... Nc7 {[%clk 0:01:55.9]} 15. b4 {[%clk 0:02:29.3]}
15... Ne6 {[%clk 0:01:48.1]} 16. Rfc1 {[%clk 0:02:17.8]} 16... Nd7 {[%clk
0:01:24.6]} 17. Ng5 {[%clk 0:01:50.7]} 17... Nd4 {[%clk 0:01:15.2]} 18. Qd1
{[%clk 0:01:43.8]} 18... Bxg2 {[%clk 0:01:09.3]} 19. Kxg2 {[%clk 0:01:43.9]}
19... h6 {[%clk 0:01:01.6]} 20. Nge4 {[%clk 0:01:36]} 20... f5 {[%clk
0:00:56.2]} 21. Nd6 {[%clk 0:01:35.3]} 21... Qe7 {[%clk 0:00:47.4]} 22. bxc5
{[%clk 0:01:31.1]} 22... Nxc5 {[%clk 0:00:44.4]} 23. Nc4 {[%clk 0:01:30]} 23...
e4 {[%clk 0:00:40.7]} 24. Be3 {[%clk 0:01:19.2]} 24... exd3 {[%clk 0:00:34]} 25.
exd3 {[%clk 0:01:18.6]} 25... Qb7+ {[%clk 0:00:30.7]} 26. f3 {[%clk 0:01:10.3]}
26... Rae8 {[%clk 0:00:24.1]} 27. Bf2 {[%clk 0:01:03]} 27... Re2 {[%clk
0:00:18.7]} 28. Nxe2 {[%clk 0:00:52.8]} 28... Qxf3+ {[%clk 0:00:17.6]} 29. Kf1
{[%clk 0:00:53]} 29... Nxd3 {[%clk 0:00:15.1]} 30. Kg1 {[%clk 0:00:30.9]} 30...
Qxf2+ {[%clk 0:00:11.6]} 31. Kh1 {[%clk 0:00:31]} 31... Qf3+ {[%clk 0:00:07.2]}
32. Kg1 {[%clk 0:00:30.8]} 32... Nxe2+ {[%clk 0:00:06.8]} 33. Qxe2 {[%clk
0:00:30.8]} 33... Qxe2 {[%clk 0:00:06.6]} 34. Rf1 {[%clk 0:00:29.7]} 34... Bd4+
{[%clk 0:00:04.3]} 35. Kh1 {[%clk 0:00:30.1]} 35... Qe4+ {[%clk 0:00:04.1]} 36.
Rf3 {[%clk 0:00:27.6]} 36... Qxf3# {[%clk 0:00:04]} 0-1

[Event "Early-Titled-Tuesday-Blitz-February-27-2024"]
[Site "Chess.com"]
[Date "2024.02.27"]
[Round "4"]
[White "Happy1712Drummer"]
[Black "nickmatta"]
[Result "0-1"]
[WhiteElo "2394"]
[BlackElo "2544"]
[TimeControl "180+1"]
[EndTime "8:37:54 PST"]
[Termination "nickmatta won by checkmate"]

1. e4 {[%clk 0:03:00.9]} 1... c5 {[%clk 0:02:52.2]} 2. Nf3 {[%clk 0:03:00.1]}
2... Nf6 {[%clk 0:02:49.2]} 3. e5 {[%clk 0:02:54.2]} 3... Nd5 {[%clk 0:02:48.6]}
4. c3 {[%clk 0:02:48]} 4... Nc6 {[%clk 0:02:47]} 5. d4 {[%clk 0:02:47.1]} 5...
cxd4 {[%clk 0:02:47.9]} 6. cxd4 {[%clk 0:02:47.6]} 6... d6 {[%clk 0:02:43.7]} 7.
exd6 {[%clk 0:02:44.8]} 7... e6 {[%clk 0:02:40.6]} 8. Nc3 {[%clk 0:02:41.4]}
8... Nxc3 {[%clk 0:02:39.5]} 9. bxc3 {[%clk 0:02:40.5]} 9... Bxd6 {[%clk
0:02:40.4]} 10. Bd3 {[%clk 0:02:33.8]} 10... Qc7 {[%clk 0:02:35]} 11. O-O {[%clk
0:02:30.2]} 11... h6 {[%clk 0:02:26.6]} 12. Qe2 {[%clk 0:02:25.2]} 12... O-O
{[%clk 0:02:25.6]} 13. Qe4 {[%clk 0:02:18.2]} 13... f5 {[%clk 0:02:25]} 14. Qe2
{[%clk 0:02:09.6]} 14... Ne7 {[%clk 0:02:17.2]} 15. c4 {[%clk 0:02:05.6]} 15...
Bd7 {[%clk 0:02:02.1]} 16. Bb2 {[%clk 0:01:48]} 16... Rae8 {[%clk 0:01:58.7]}
17. h4 {[%clk 0:01:38.5]} 17... Bc6 {[%clk 0:01:45.3]} 18. c5 {[%clk 0:01:29.1]}
18... Bxf3 {[%clk 0:01:42]} 19. Qxf3 {[%clk 0:01:22.2]} 19... Bf4 {[%clk
0:01:34.1]} 20. g3 {[%clk 0:01:19.1]} 20... Bd2 {[%clk 0:01:33.6]} 21. Qe2
{[%clk 0:01:18.4]} 21... Ba5 {[%clk 0:01:27.1]} 22. Qxe6+ {[%clk 0:01:18.6]}
22... Kh8 {[%clk 0:01:27.8]} 23. d5 {[%clk 0:01:15.3]} 23... Ng8 {[%clk
0:01:11.5]} 24. Qg6 {[%clk 0:01:01.7]} 24... Bb4 {[%clk 0:01:00.6]} 25. Bxf5
{[%clk 0:00:56.5]} 25... Rxf5 {[%clk 0:00:52.2]} 26. Qxf5 {[%clk 0:00:56]} 26...
Bxc5 {[%clk 0:00:52.8]} 27. Rae1 {[%clk 0:00:46]} 27... Qxg3+ {[%clk 0:00:52]}
28. Kh1 {[%clk 0:00:39.4]} 28... Qxh4+ {[%clk 0:00:49.2]} 29. Kg1 {[%clk
0:00:33.5]} 29... Rf8 {[%clk 0:00:38.6]} 30. Qg6 {[%clk 0:00:14.3]} 30... Bxf2+
{[%clk 0:00:23.9]} 31. Kg2 {[%clk 0:00:14.3]} 31... Rf7 {[%clk 0:00:11.8]} 32.
Qxf7 {[%clk 0:00:07.3]} 32... Qg3+ {[%clk 0:00:11.9]} 33. Kh1 {[%clk 0:00:07]}
33... Qh3# {[%clk 0:00:12.8]} 0-1

[Event "Early-Titled-Tuesday-Blitz-February-27-2024"]
[Site "Chess.com"]
[Date "2024.02.27"]
[Round "4"]
[White "Binary010"]
[Black "TregubovP"]
[Result "1-0"]
[WhiteElo "2862"]
[BlackElo "2685"]
[TimeControl "180+1"]
[EndTime "8:37:56 PST"]
[Termination "Binary010 won by resignation"]

1. e4 {[%clk 0:03:00.9]} 1... c5 {[%clk 0:02:59.2]} 2. Nf3 {[%clk 0:03:01]} 2...
e6 {[%clk 0:02:59.3]} 3. d4 {[%clk 0:03:01]} 3... cxd4 {[%clk 0:02:59.5]} 4.
Nxd4 {[%clk 0:03:01.9]} 4... Nf6 {[%clk 0:02:58.5]} 5. Nc3 {[%clk 0:03:01.9]}
5... Nc6 {[%clk 0:02:59.1]} 6. Ndb5 {[%clk 0:02:54.5]} 6... Bb4 {[%clk
0:02:57.8]} 7. a3 {[%clk 0:02:54.1]} 7... Bxc3+ {[%clk 0:02:58.3]} 8. Nxc3
{[%clk 0:02:54.6]} 8... d5 {[%clk 0:02:57.3]} 9. exd5 {[%clk 0:02:55]} 9... exd5
{[%clk 0:02:53.6]} 10. Bd3 {[%clk 0:02:55.3]} 10... O-O {[%clk 0:02:52.4]} 11.
O-O {[%clk 0:02:55.3]} 11... d4 {[%clk 0:02:53]} 12. Ne2 {[%clk 0:02:55.5]}
12... Bg4 {[%clk 0:02:53.3]} 13. Bg5 {[%clk 0:02:50.9]} 13... Qd6 {[%clk
0:02:50.8]} 14. Qd2 {[%clk 0:02:46.3]} 14... Bxe2 {[%clk 0:02:48.6]} 15. Qxe2
{[%clk 0:02:42.7]} 15... Rfe8 {[%clk 0:02:48.6]} 16. Qd1 {[%clk 0:02:26.6]}
16... Ne4 {[%clk 0:02:40.4]} 17. Bh4 {[%clk 0:02:22]} 17... Qf4 {[%clk 0:02:33]}
18. Bg3 {[%clk 0:02:16.7]} 18... Nxg3 {[%clk 0:02:32.6]} 19. hxg3 {[%clk
0:02:17.6]} 19... Qf6 {[%clk 0:02:20.9]} 20. Qf3 {[%clk 0:02:11.6]} 20... Qxf3
{[%clk 0:02:12.8]} 21. gxf3 {[%clk 0:02:12.5]} 21... Ne5 {[%clk 0:02:01.3]} 22.
Be4 {[%clk 0:02:03.9]} 22... Nc4 {[%clk 0:01:57.2]} 23. Rfd1 {[%clk 0:02:00]}
23... Rad8 {[%clk 0:01:21.1]} 24. b3 {[%clk 0:01:56.9]} 24... Nd6 {[%clk
0:01:05.1]} 25. Rxd4 {[%clk 0:01:50.3]} 25... Nxe4 {[%clk 0:01:05.5]} 26. Rxd8
{[%clk 0:01:50.5]} 26... Rxd8 {[%clk 0:01:06]} 27. fxe4 {[%clk 0:01:51.1]} 27...
Rd2 {[%clk 0:00:55.4]} 28. Rc1 {[%clk 0:01:48.5]} 28... g5 {[%clk 0:00:55.5]}
29. g4 {[%clk 0:01:32.9]} 29... Kg7 {[%clk 0:00:52.6]} 30. Kg2 {[%clk
0:01:31.2]} 30... Kf6 {[%clk 0:00:51.4]} 31. Kf3 {[%clk 0:01:31.2]} 31... Ke5
{[%clk 0:00:51.6]} 32. Ke3 {[%clk 0:01:25.9]} 32... Rd6 {[%clk 0:00:47.1]} 33.
Rh1 {[%clk 0:01:17.1]} 33... h6 {[%clk 0:00:46.9]} 34. Rh5 {[%clk 0:01:11.7]}
34... Rf6 {[%clk 0:00:43.9]} 35. f3 {[%clk 0:01:07.7]} 35... b5 {[%clk 0:00:43]}
36. Rh2 {[%clk 0:01:01.2]} 36... Rc6 {[%clk 0:00:35.4]} 37. Rd2 {[%clk
0:00:50.7]} 37... Rc3+ {[%clk 0:00:35.1]} 38. Rd3 {[%clk 0:00:50.6]} 38... Rxc2
{[%clk 0:00:35.2]} 39. Rd5+ {[%clk 0:00:50.9]} 39... Ke6 {[%clk 0:00:33.3]} 40.
Rxb5 {[%clk 0:00:50]} 40... Rc3+ {[%clk 0:00:33.8]} 41. Ke2 {[%clk 0:00:48.9]}
41... a6 {[%clk 0:00:33.4]} 42. Rb6+ {[%clk 0:00:43]} 42... Ke5 {[%clk
0:00:33.7]} 43. Rxh6 {[%clk 0:00:43.1]} 43... Rxb3 {[%clk 0:00:30.4]} 44. Rxa6
{[%clk 0:00:42.9]} 44... Kf4 {[%clk 0:00:30.9]} 45. Rf6+ {[%clk 0:00:42]} 45...
Kg3 {[%clk 0:00:31]} 46. Rxf7 {[%clk 0:00:37.5]} 46... Rxa3 {[%clk 0:00:31.4]}
47. Rf5 {[%clk 0:00:28.7]} 47... Rb3 {[%clk 0:00:28.8]} 48. e5 {[%clk
0:00:26.2]} 1-0

[Event "Early-Titled-Tuesday-Blitz-February-27-2024"]
[Site "Chess.com"]
[Date "2024.02.27"]
[Round "4"]
[White "ural58"]
[Black "GelmanAlexander"]
[Result "1-0"]
[WhiteElo "2460"]
[BlackElo "2714"]
[TimeControl "180+1"]
[EndTime "8:37:57 PST"]
[Termination "ural58 won by checkmate"]

1. e4 {[%clk 0:02:59.4]} 1... c5 {[%clk 0:02:59.7]} 2. b3 {[%clk 0:02:55.8]}
2... e6 {[%clk 0:02:59.2]} 3. Nf3 {[%clk 0:02:54.5]} 3... a6 {[%clk 0:02:58.7]}
4. Bb2 {[%clk 0:02:54.1]} 4... b6 {[%clk 0:02:54.2]} 5. d4 {[%clk 0:02:53.2]}
5... cxd4 {[%clk 0:02:54.2]} 6. Nxd4 {[%clk 0:02:52.4]} 6... Bb7 {[%clk
0:02:54.2]} 7. Bd3 {[%clk 0:02:49.7]} 7... Qc7 {[%clk 0:02:48.2]} 8. O-O {[%clk
0:02:47.7]} 8... Nf6 {[%clk 0:02:46.7]} 9. Qe2 {[%clk 0:02:38.5]} 9... h5 {[%clk
0:02:43.3]} 10. h3 {[%clk 0:02:38.1]} 10... d6 {[%clk 0:02:39.1]} 11. Nd2 {[%clk
0:02:30.2]} 11... Nbd7 {[%clk 0:02:39.3]} 12. a4 {[%clk 0:02:22]} 12... Be7
{[%clk 0:02:37.9]} 13. Nc4 {[%clk 0:02:19.7]} 13... g5 {[%clk 0:02:26.2]} 14.
Rfe1 {[%clk 0:02:12.6]} 14... g4 {[%clk 0:02:17.1]} 15. h4 {[%clk 0:02:12]}
15... Ne5 {[%clk 0:02:13.5]} 16. a5 {[%clk 0:01:57.6]} 16... b5 {[%clk
0:02:10.6]} 17. Nb6 {[%clk 0:01:57.3]} 17... Rd8 {[%clk 0:02:10.3]} 18. g3
{[%clk 0:01:41.5]} 18... Rg8 {[%clk 0:01:47.3]} 19. Rad1 {[%clk 0:01:23.6]}
19... Rg6 {[%clk 0:01:39.4]} 20. Bc1 {[%clk 0:01:22.8]} 20... Qc5 {[%clk
0:01:25.9]} 21. Be3 {[%clk 0:01:22]} 21... Qc7 {[%clk 0:01:24.8]} 22. c4 {[%clk
0:01:19.4]} 22... Nxd3 {[%clk 0:01:17.8]} 23. Qxd3 {[%clk 0:01:18.2]} 23... Bxe4
{[%clk 0:01:13.8]} 24. Qe2 {[%clk 0:01:11]} 24... b4 {[%clk 0:01:08.1]} 25. Bg5
{[%clk 0:01:09.1]} 25... Bb7 {[%clk 0:01:01.6]} 26. Qd3 {[%clk 0:00:39.9]} 26...
Rg7 {[%clk 0:00:39.4]} 27. Kh2 {[%clk 0:00:31.7]} 27... Nd7 {[%clk 0:00:25]} 28.
Rxe6 {[%clk 0:00:18.7]} 28... fxe6 {[%clk 0:00:13.5]} 29. Nxe6 {[%clk
0:00:19.3]} 29... Qc6 {[%clk 0:00:14.1]} 30. Nd5 {[%clk 0:00:19.5]} 30... Rxg5
{[%clk 0:00:08.7]} 31. hxg5 {[%clk 0:00:18.8]} 31... Ne5 {[%clk 0:00:09.4]} 32.
Qh7 {[%clk 0:00:16.2]} 32... Kd7 {[%clk 0:00:06.5]} 33. Qxe7+ {[%clk 0:00:15.4]}
33... Kc8 {[%clk 0:00:06]} 34. Qxd8# {[%clk 0:00:16.2]} 1-0

[Event "Early-Titled-Tuesday-Blitz-February-27-2024"]
[Site "Chess.com"]
[Date "2024.02.27"]
[Round "4"]
[White "Orion2127989"]
[Black "dpopadic"]
[Result "0-1"]
[WhiteElo "2153"]
[BlackElo "2349"]
[TimeControl "180+1"]
[EndTime "8:37:57 PST"]
[Termination "dpopadic won by resignation"]

1. d4 {[%clk 0:03:00]} 1... Nf6 {[%clk 0:02:59.5]} 2. Nf3 {[%clk 0:03:00]} 2...
g6 {[%clk 0:02:59.1]} 3. Bg5 {[%clk 0:02:59.6]} 3... Bg7 {[%clk 0:02:58.7]} 4.
Nbd2 {[%clk 0:02:59]} 4... d6 {[%clk 0:02:57.8]} 5. e4 {[%clk 0:02:58.9]} 5...
O-O {[%clk 0:02:57.4]} 6. Bd3 {[%clk 0:02:58.6]} 6... Nc6 {[%clk 0:02:57.4]} 7.
O-O {[%clk 0:02:57.2]} 7... e5 {[%clk 0:02:57.3]} 8. c3 {[%clk 0:02:56.9]} 8...
h6 {[%clk 0:02:55.4]} 9. Bh4 {[%clk 0:02:56.8]} 9... Qe7 {[%clk 0:02:55.1]} 10.
Re1 {[%clk 0:02:56.6]} 10... Bd7 {[%clk 0:02:51.5]} 11. a3 {[%clk 0:02:56.2]}
11... Rad8 {[%clk 0:02:50.4]} 12. Qc2 {[%clk 0:02:55.8]} 12... Bc8 {[%clk
0:02:49]} 13. Rad1 {[%clk 0:02:53.6]} 13... a6 {[%clk 0:02:47.6]} 14. h3 {[%clk
0:02:49]} 14... g5 {[%clk 0:02:43.9]} 15. Bg3 {[%clk 0:02:48.8]} 15... Nh5
{[%clk 0:02:43.8]} 16. Bh2 {[%clk 0:02:48.7]} 16... Rfe8 {[%clk 0:02:41.5]} 17.
dxe5 {[%clk 0:02:40.3]} 17... dxe5 {[%clk 0:02:35.6]} 18. Nc4 {[%clk 0:02:37.5]}
18... Nf4 {[%clk 0:02:27.2]} 19. Bf1 {[%clk 0:02:36.2]} 19... Be6 {[%clk
0:02:23.6]} 20. Ne3 {[%clk 0:02:28.7]} 20... Rxd1 {[%clk 0:02:11.2]} 21. Rxd1
{[%clk 0:02:27.8]} 21... Rd8 {[%clk 0:02:11.6]} 22. Rxd8+ {[%clk 0:02:27]} 22...
Qxd8 {[%clk 0:02:11.1]} 23. b4 {[%clk 0:02:26.9]} 23... Ne7 {[%clk 0:02:07.9]}
24. Bc4 {[%clk 0:02:11.2]} 24... Bxc4 {[%clk 0:01:52.1]} 25. Nxc4 {[%clk
0:02:12.1]} 25... Neg6 {[%clk 0:01:51.4]} 26. Qd2 {[%clk 0:01:51.7]} 26... Qxd2
{[%clk 0:01:43.3]} 27. Nfxd2 {[%clk 0:01:52.6]} 27... Ne2+ {[%clk 0:01:43.1]}
28. Kf1 {[%clk 0:01:48.2]} 28... Nxc3 {[%clk 0:01:43]} 29. f3 {[%clk 0:01:45.5]}
29... f6 {[%clk 0:01:36.7]} 30. Bg1 {[%clk 0:01:44.9]} 30... Bf8 {[%clk
0:01:35.4]} 31. Nb3 {[%clk 0:01:33.3]} 31... Nf4 {[%clk 0:01:27.7]} 32. Nc5
{[%clk 0:01:20.8]} 32... Bxc5 {[%clk 0:01:26.3]} 33. Bxc5 {[%clk 0:01:21.7]}
33... Kf7 {[%clk 0:01:24.2]} 34. Ne3 {[%clk 0:01:14.9]} 34... h5 {[%clk
0:01:21.2]} 35. Nc4 {[%clk 0:00:59.1]} 35... Ke6 {[%clk 0:01:17.7]} 36. Be3
{[%clk 0:00:55.9]} 36... b5 {[%clk 0:01:06.8]} 37. Nb2 {[%clk 0:00:49.4]} 37...
Kd7 {[%clk 0:00:58.8]} 38. h4 {[%clk 0:00:32.5]} 38... gxh4 {[%clk 0:00:53.9]}
39. Bxf4 {[%clk 0:00:32]} 39... exf4 {[%clk 0:00:53.5]} 40. Nd3 {[%clk
0:00:32.1]} 40... Nb1 {[%clk 0:00:52]} 41. a4 {[%clk 0:00:29.4]} 41... bxa4
{[%clk 0:00:49]} 42. Nc5+ {[%clk 0:00:29.4]} 42... Kc6 {[%clk 0:00:49]} 43. Nxa4
{[%clk 0:00:30.2]} 43... Kb5 {[%clk 0:00:48.5]} 44. Nb2 {[%clk 0:00:29.1]} 44...
Kxb4 {[%clk 0:00:47.1]} 45. Nd3+ {[%clk 0:00:29.5]} 45... Kc3 {[%clk 0:00:45.5]}
46. Nxf4 {[%clk 0:00:29.7]} 46... a5 {[%clk 0:00:44.6]} 47. Ne2+ {[%clk
0:00:29.4]} 47... Kb2 {[%clk 0:00:43.6]} 48. f4 {[%clk 0:00:23.3]} 48... Nd2+
{[%clk 0:00:42.8]} 0-1